[Event "Titled Tuesday Blitz May 31 Late 2022"]
[White "Maghsoodloo, Parham"]
[Black "Chyngyz, Sultai"]
[WhiteFideId "12539929"]
[BlackFideId "13803158"]
[WhiteElo "2630"]
[BlackElo "1365"]
[Result "1-0"]
[Round "03"]
[TimeControl "180+1"]
[Date "2022.05.31"]
[WhiteClock "0:01:53"]
[BlackClock "0:01:32"]

1. e4 {[%clk 0:03:00]}  c5 {[%clk 0:02:55]} 2. Nf3 {[%clk 0:03:00]}  d6 {[%clk 0:02:54]} 3. d4 {[%clk 0:03:00]}  cxd4 {[%clk 0:02:54]} 4. Nxd4 {[%clk 0:03:01]}  Nf6 {[%clk 0:02:53]} 5. Nc3 {[%clk 0:03:02]}  a6 {[%clk 0:02:52]} 6. Bg5 {[%clk 0:03:02]}  e6 {[%clk 0:02:49]} 7. f4 {[%clk 0:02:59]}  Be7 {[%clk 0:02:48]} 8. Qf3 {[%clk 0:02:54]}  O-O {[%clk 0:02:47]} 9. O-O-O {[%clk 0:02:54]}  Qc7 {[%clk 0:02:45]} 10. g4 {[%clk 0:02:53]}  b5 {[%clk 0:02:45]} 11. a3 {[%clk 0:02:53]}  Bb7 {[%clk 0:02:42]} 12. Bxf6 {[%clk 0:02:49]}  Bxf6 {[%clk 0:02:43]} 13. g5 {[%clk 0:02:50]}  Bxd4 {[%clk 0:02:43]} 14. Rxd4 {[%clk 0:02:50]}  Nc6 {[%clk 0:02:43]} 15. Rd2 {[%clk 0:02:45]}  b4 {[%clk 0:02:36]} 16. axb4 {[%clk 0:02:45]}  Nxb4 {[%clk 0:02:37]} 17. Kb1 {[%clk 0:02:37]}  Rfc8 {[%clk 0:02:35]} 18. f5 {[%clk 0:02:36]}  exf5 {[%clk 0:02:32]} 19. Qxf5 {[%clk 0:02:35]}  Bc6 {[%clk 0:02:17]} 20. Bc4 {[%clk 0:02:29]}  Rab8 {[%clk 0:02:14]} 21. Rf1 {[%clk 0:02:28]}  Be8 {[%clk 0:02:12]} 22. Bb3 {[%clk 0:02:19]}  a5 {[%clk 0:02:11]} 23. g6 {[%clk 0:02:17]}  hxg6 {[%clk 0:02:10]} 24. Qxg6 {[%clk 0:02:17]}  a4 {[%clk 0:02:10]} 25. Rg2 {[%clk 0:02:17]}  Kf8 {[%clk 0:02:01]} 26. Bxf7 {[%clk 0:02:00]}  Bxf7 {[%clk 0:01:55]} 27. Qxg7+ {[%clk 0:02:00]}  Ke8 {[%clk 0:01:55]} 28. Qh8+ {[%clk 0:02:01]}  Ke7 {[%clk 0:01:41]} 29. Rxf7+ {[%clk 0:02:01]}  Kxf7 {[%clk 0:01:39]} 30. Qh7+ {[%clk 0:01:55]}  Ke6 {[%clk 0:01:36]} 31. Qf5+ {[%clk 0:01:55]}  Ke7 {[%clk 0:01:36]} 32. Rg7+ {[%clk 0:01:55]}  Ke8 {[%clk 0:01:36]} 33. Qe6+ {[%clk 0:01:54]}  Qe7 {[%clk 0:01:32]} 34. Rg8# {[%clk 0:01:53]} 1-0


[Site "https://www.chess.com"]

[Event "Titled Tuesday Blitz May 31 Late 2022"]
[White "Manukian, Artak"]
[Black "Ardila, Oscar Humberto"]
[WhiteFideId "13301373"]
[BlackFideId "4404742"]
[WhiteElo "2564"]
[BlackElo "1928"]
[Result "1-0"]
[Round "03"]
[TimeControl "180+1"]
[Date "2022.06.01"]
[WhiteClock "0:00:14"]
[BlackClock "0:00:15"]

1. e4 {[%clk 0:03:00]}  e5 {[%clk 0:02:58]} 2. Nf3 {[%clk 0:03:00]}  Nf6 {[%clk 0:02:59]} 3. Nxe5 {[%clk 0:03:00]}  d6 {[%clk 0:02:59]} 4. Nf3 {[%clk 0:03:00]}  Nxe4 {[%clk 0:02:59]} 5. Nc3 {[%clk 0:03:01]}  Nxc3 {[%clk 0:02:57]} 6. dxc3 {[%clk 0:03:02]}  Be7 {[%clk 0:02:58]} 7. Be3 {[%clk 0:03:02]}  O-O {[%clk 0:02:59]} 8. Bd3 {[%clk 0:03:02]}  Nd7 {[%clk 0:02:59]} 9. Qd2 {[%clk 0:03:01]}  Nf6 {[%clk 0:03:00]} 10. O-O-O {[%clk 0:02:59]}  c6 {[%clk 0:03:00]} 11. h3 {[%clk 0:02:53]}  Qa5 {[%clk 0:03:00]} 12. Kb1 {[%clk 0:02:52]}  Be6 {[%clk 0:03:00]} 13. c4 {[%clk 0:02:50]}  Qxd2 {[%clk 0:03:00]} 14. Rxd2 {[%clk 0:02:50]}  Rfe8 {[%clk 0:02:54]} 15. g4 {[%clk 0:02:41]}  h6 {[%clk 0:02:50]} 16. g5 {[%clk 0:02:26]}  hxg5 {[%clk 0:02:50]} 17. Nxg5 {[%clk 0:02:27]}  Bd7 {[%clk 0:02:48]} 18. Be2 {[%clk 0:02:06]}  Bf5 {[%clk 0:02:42]} 19. Rg1 {[%clk 0:01:59]}  b6 {[%clk 0:02:38]} 20. h4 {[%clk 0:01:57]}  Rad8 {[%clk 0:02:37]} 21. h5 {[%clk 0:01:54]}  Ne4 {[%clk 0:02:29]} 22. Nxe4 {[%clk 0:01:51]}  Bxe4 {[%clk 0:02:30]} 23. h6 {[%clk 0:01:52]}  g6 {[%clk 0:02:09]} 24. Rg4 {[%clk 0:01:30]}  Bf5 {[%clk 0:02:08]} 25. Rg3 {[%clk 0:01:21]}  Kh7 {[%clk 0:02:06]} 26. Bf3 {[%clk 0:01:16]}  Rc8 {[%clk 0:02:01]} 27. b3 {[%clk 0:01:08]}  b5 {[%clk 0:01:57]} 28. cxb5 {[%clk 0:01:02]}  cxb5 {[%clk 0:01:58]} 29. Bg4 {[%clk 0:00:58]}  Bxg4 {[%clk 0:01:48]} 30. Rxg4 {[%clk 0:00:59]}  a6 {[%clk 0:01:48]} 31. a4 {[%clk 0:00:55]}  f5 {[%clk 0:01:43]} 32. Rb4 {[%clk 0:00:46]}  d5 {[%clk 0:01:29]} 33. Rbd4 {[%clk 0:00:46]}  bxa4 {[%clk 0:01:29]} 34. Rxa4 {[%clk 0:00:42]}  Rc6 {[%clk 0:01:20]} 35. Rxd5 {[%clk 0:00:39]}  Rd8 {[%clk 0:01:16]} 36. Rxd8 {[%clk 0:00:38]}  Bxd8 {[%clk 0:01:17]} 37. Rd4 {[%clk 0:00:36]}  Bf6 {[%clk 0:01:10]} 38. Rd7+ {[%clk 0:00:36]}  Kh8 {[%clk 0:01:09]} 39. c4 {[%clk 0:00:35]}  g5 {[%clk 0:01:06]} 40. Kc2 {[%clk 0:00:34]}  f4 {[%clk 0:01:06]} 41. Bd4 {[%clk 0:00:34]}  Bxd4 {[%clk 0:01:06]} 42. Rxd4 {[%clk 0:00:35]}  Kh7 {[%clk 0:01:06]} 43. b4 {[%clk 0:00:31]}  Kxh6 {[%clk 0:01:05]} 44. Kb3 {[%clk 0:00:31]}  Kh5 {[%clk 0:01:05]} 45. c5 {[%clk 0:00:31]}  Rc8 {[%clk 0:00:39]} 46. Rd6 {[%clk 0:00:23]}  a5 {[%clk 0:00:37]} 47. bxa5 {[%clk 0:00:22]}  Rxc5 {[%clk 0:00:37]} 48. Kb4 {[%clk 0:00:22]}  Rc1 {[%clk 0:00:37]} 49. a6 {[%clk 0:00:20]}  Rb1+ {[%clk 0:00:37]} 50. Kc5 {[%clk 0:00:20]}  Kg4 {[%clk 0:00:36]} 51. a7 {[%clk 0:00:19]}  Ra1 {[%clk 0:00:36]} 52. Kb6 {[%clk 0:00:19]}  Kf3 {[%clk 0:00:35]} 53. Rg6 {[%clk 0:00:18]}  g4 {[%clk 0:00:32]} 54. Kb7 {[%clk 0:00:17]}  g3 {[%clk 0:00:28]} 55. fxg3 {[%clk 0:00:17]}  fxg3 {[%clk 0:00:29]} 56. Ra6 {[%clk 0:00:14]}  Rxa6 {[%clk 0:00:19]} 57. Kxa6 {[%clk 0:00:15]}  g2 {[%clk 0:00:19]} 58. a8=Q+ {[%clk 0:00:16]}  Kf2 {[%clk 0:00:17]} 59. Qf8+ {[%clk 0:00:16]}  Ke1 {[%clk 0:00:17]} 60. Qe7+ {[%clk 0:00:16]}  Kf1 {[%clk 0:00:17]} 61. Qf6+ {[%clk 0:00:17]}  Ke2 {[%clk 0:00:17]} 62. Qe5+ {[%clk 0:00:17]}  Kf1 {[%clk 0:00:17]} 63. Qf4+ {[%clk 0:00:17]}  Ke2 {[%clk 0:00:18]} 64. Qg4+ {[%clk 0:00:17]}  Kf2 {[%clk 0:00:18]} 65. Qf4+ {[%clk 0:00:17]}  Ke2 {[%clk 0:00:18]} 66. Qg3 {[%clk 0:00:17]}  Kf1 {[%clk 0:00:18]} 67. Qf3+ {[%clk 0:00:17]}  Kg1 {[%clk 0:00:18]} 68. Kb5 {[%clk 0:00:18]}  Kh1 {[%clk 0:00:18]} 69. Qh3+ {[%clk 0:00:17]}  Kg1 {[%clk 0:00:18]} 70. Kc4 {[%clk 0:00:18]}  Kf1 {[%clk 0:00:18]} 71. Kd3 {[%clk 0:00:17]}  Kf2 {[%clk 0:00:18]} 72. Qh4+ {[%clk 0:00:16]}  Kf3 {[%clk 0:00:18]} 73. Qh2 {[%clk 0:00:16]}  Kf2 {[%clk 0:00:16]} 74. Qf4+ {[%clk 0:00:16]}  Ke1 {[%clk 0:00:15]} 75. Qg3+ {[%clk 0:00:15]}  Kf1 {[%clk 0:00:16]} 76. Qf3+ {[%clk 0:00:15]}  Kg1 {[%clk 0:00:16]} 77. Ke2 {[%clk 0:00:16]}  Kh2 {[%clk 0:00:16]} 78. Qf4+ {[%clk 0:00:14]}  Kh1 {[%clk 0:00:16]} 79. Qh4+ {[%clk 0:00:14]}  Kg1 {[%clk 0:00:16]} 80. Kf3 {[%clk 0:00:14]}  Kf1 {[%clk 0:00:15]} 81. Qf2# {[%clk 0:00:14]} 1-0


[Site "https://www.chess.com"]

[Event "Titled Tuesday Blitz May 31 Late 2022"]
[White "Murzin, Volodar"]
[Black "Luo, Terry"]
[WhiteFideId "44155573"]
[BlackFideId "30931045"]
[WhiteElo "2585"]
[BlackElo "2024"]
[Result "1/2-1/2"]
[Round "03"]
[TimeControl "180+1"]
[Date "2022.05.31"]
[WhiteClock "0:00:09"]
[BlackClock "0:00:25"]

1. e4 {[%clk 0:03:00]}  c5 {[%clk 0:02:59]} 2. Nf3 {[%clk 0:02:59]}  d6 {[%clk 0:02:59]} 3. Bb5+ {[%clk 0:02:57]}  Bd7 {[%clk 0:02:59]} 4. Bxd7+ {[%clk 0:02:57]}  Nxd7 {[%clk 0:02:59]} 5. O-O {[%clk 0:02:58]}  Ngf6 {[%clk 0:02:59]} 6. Qe2 {[%clk 0:02:53]}  e6 {[%clk 0:02:39]} 7. c3 {[%clk 0:02:52]}  Be7 {[%clk 0:02:36]} 8. d4 {[%clk 0:02:52]}  O-O {[%clk 0:02:33]} 9. Rd1 {[%clk 0:02:51]}  cxd4 {[%clk 0:02:30]} 10. cxd4 {[%clk 0:02:50]}  Rc8 {[%clk 0:02:28]} 11. Nc3 {[%clk 0:02:50]}  Nb6 {[%clk 0:02:29]} 12. a4 {[%clk 0:02:45]}  Nc4 {[%clk 0:02:24]} 13. Nd2 {[%clk 0:02:29]}  Nxd2 {[%clk 0:02:17]} 14. Bxd2 {[%clk 0:02:29]}  d5 {[%clk 0:02:18]} 15. e5 {[%clk 0:02:27]}  Nd7 {[%clk 0:02:17]} 16. Rdc1 {[%clk 0:02:13]}  Qb6 {[%clk 0:02:13]} 17. a5 {[%clk 0:01:51]}  Qb3 {[%clk 0:02:08]} 18. Qd1 {[%clk 0:01:00]}  Qxd1+ {[%clk 0:02:04]} 19. Nxd1 {[%clk 0:01:00]}  a6 {[%clk 0:02:00]} 20. Ne3 {[%clk 0:00:57]}  Nb8 {[%clk 0:01:57]} 21. Rxc8 {[%clk 0:00:53]}  Rxc8 {[%clk 0:01:56]} 22. Bc3 {[%clk 0:00:54]}  Nc6 {[%clk 0:01:53]} 23. Nc2 {[%clk 0:00:54]}  f6 {[%clk 0:01:49]} 24. f4 {[%clk 0:00:48]}  Na7 {[%clk 0:01:31]} 25. exf6 {[%clk 0:00:05]}  gxf6 {[%clk 0:01:31]} 26. Re1 {[%clk 0:00:04]}  Kf7 {[%clk 0:01:31]} 27. Re3 {[%clk 0:00:01]}  Nb5 {[%clk 0:01:31]} 28. Kf2 {[%clk 0:00:01]}  Bd6 {[%clk 0:01:31]} 29. g3 {[%clk 0:00:01]}  h5 {[%clk 0:01:28]} 30. Ke2 {[%clk 0:00:01]}  h4 {[%clk 0:01:27]} 31. Kd3 {[%clk 0:00:02]}  hxg3 {[%clk 0:01:27]} 32. hxg3 {[%clk 0:00:03]}  Rh8 {[%clk 0:01:26]} 33. Bd2 {[%clk 0:00:03]}  Rh2 {[%clk 0:01:21]} 34. Ne1 {[%clk 0:00:03]}  Bc7 {[%clk 0:01:13]} 35. Nf3 {[%clk 0:00:03]}  Rh1 {[%clk 0:01:13]} 36. Re1 {[%clk 0:00:03]}  Rh3 {[%clk 0:01:12]} 37. Rg1 {[%clk 0:00:04]}  Nd6 {[%clk 0:01:12]} 38. Be1 {[%clk 0:00:04]}  Ne4 {[%clk 0:01:11]} 39. Ke2 {[%clk 0:00:04]}  Bd6 {[%clk 0:01:06]} 40. Rg2 {[%clk 0:00:04]}  Rh8 {[%clk 0:01:05]} 41. Rh2 {[%clk 0:00:03]}  Rxh2+ {[%clk 0:01:03]} 42. Nxh2 {[%clk 0:00:03]}  Kg6 {[%clk 0:01:02]} 43. Nf1 {[%clk 0:00:03]}  Kf7 {[%clk 0:00:52]} 44. Ne3 {[%clk 0:00:04]}  Ke7 {[%clk 0:00:50]} 45. Kd3 {[%clk 0:00:02]}  Kd7 {[%clk 0:00:50]} 46. Kc2 {[%clk 0:00:03]}  Kc6 {[%clk 0:00:51]} 47. b4 {[%clk 0:00:02]}  Kb5 {[%clk 0:00:51]} 48. Kb3 {[%clk 0:00:03]}  f5 {[%clk 0:00:38]} 49. Nc2 {[%clk 0:00:02]}  Kc6 {[%clk 0:00:37]} 50. Ne3 {[%clk 0:00:02]}  Be7 {[%clk 0:00:36]} 51. Nf1 {[%clk 0:00:02]}  Bf6 {[%clk 0:00:36]} 52. Bc3 {[%clk 0:00:01]}  Kb5 {[%clk 0:00:34]} 53. Ne3 {[%clk 0:00:01]}  Nxg3 {[%clk 0:00:32]} 54. Nc2 {[%clk 0:00:01]}  Ne4 {[%clk 0:00:31]} 55. Be1 {[%clk 0:00:01]}  Be7 {[%clk 0:00:29]} 56. Ne3 {[%clk 0:00:01]}  Nd6 {[%clk 0:00:26]} 57. Nc2 {[%clk 0:00:01]}  Nc4 {[%clk 0:00:27]} 58. Bc3 {[%clk 0:00:01]}  Bd6 {[%clk 0:00:27]} 59. Ne1 {[%clk 0:00:01]}  Bxf4 {[%clk 0:00:27]} 60. Nd3 {[%clk 0:00:02]}  Bd6 {[%clk 0:00:27]} 61. Nf2 {[%clk 0:00:03]}  f4 {[%clk 0:00:27]} 62. Nd3 {[%clk 0:00:02]}  f3 {[%clk 0:00:28]} 63. Be1 {[%clk 0:00:03]}  e5 {[%clk 0:00:28]} 64. dxe5 {[%clk 0:00:03]}  Nxe5 {[%clk 0:00:29]} 65. Nf2 {[%clk 0:00:03]}  Nc4 {[%clk 0:00:29]} 66. Nd3 {[%clk 0:00:03]}  Ne3 {[%clk 0:00:27]} 67. Bf2 {[%clk 0:00:03]}  Nf5 {[%clk 0:00:27]} 68. Ne1 {[%clk 0:00:03]}  Bg3 {[%clk 0:00:23]} 69. Bxg3 {[%clk 0:00:03]}  Nxg3 {[%clk 0:00:24]} 70. Nxf3 {[%clk 0:00:04]}  Kc6 {[%clk 0:00:21]} 71. Nd4+ {[%clk 0:00:03]}  Kd6 {[%clk 0:00:21]} 72. Kc3 {[%clk 0:00:03]}  Ke5 {[%clk 0:00:21]} 73. b5 {[%clk 0:00:03]}  Ne4+ {[%clk 0:00:21]} 74. Kd3 {[%clk 0:00:03]}  Nf2+ {[%clk 0:00:22]} 75. Kc3 {[%clk 0:00:03]}  Nd1+ {[%clk 0:00:22]} 76. Kd3 {[%clk 0:00:04]}  Nb2+ {[%clk 0:00:22]} 77. Kc3 {[%clk 0:00:04]}  Na4+ {[%clk 0:00:22]} 78. Kd3 {[%clk 0:00:04]}  Nc5+ {[%clk 0:00:22]} 79. Kc3 {[%clk 0:00:04]}  Ne4+ {[%clk 0:00:23]} 80. Kd3 {[%clk 0:00:04]}  Nd6 {[%clk 0:00:24]} 81. bxa6 {[%clk 0:00:04]}  bxa6 {[%clk 0:00:25]} 82. Nc6+ {[%clk 0:00:05]}  Ke6 {[%clk 0:00:25]} 83. Nb4 {[%clk 0:00:06]}  Nb7 {[%clk 0:00:24]} 84. Nxa6 {[%clk 0:00:06]}  Nxa5 {[%clk 0:00:25]} 85. Kd4 {[%clk 0:00:07]}  Nc6+ {[%clk 0:00:25]} 86. Kc5 {[%clk 0:00:07]}  d4 {[%clk 0:00:25]} 87. Kxc6 {[%clk 0:00:07]}  d3 {[%clk 0:00:25]} 88. Nc5+ {[%clk 0:00:08]}  Ke5 {[%clk 0:00:25]} 89. Nxd3+ {[%clk 0:00:09]} 1/2-1/2


[Site "https://www.chess.com"]

[Event "Titled Tuesday Blitz May 31 Late 2022"]
[White "Norowitz, Yaacov"]
[Black "Gomez Ledo, Roberto Carlos"]
[WhiteFideId "2024799"]
[BlackFideId "3507076"]
[WhiteElo "2412"]
[BlackElo "2379"]
[Result "1-0"]
[Round "03"]
[TimeControl "180+1"]
[Date "2022.05.31"]
[WhiteClock "0:01:43"]
[BlackClock "0:00:07"]

1. d4 {[%clk 0:02:41]}  Nf6 {[%clk 0:02:59]} 2. e3 {[%clk 0:02:38]}  d5 {[%clk 0:02:55]} 3. Bd3 {[%clk 0:02:36]}  Bg4 {[%clk 0:02:46]} 4. Ne2 {[%clk 0:02:36]}  e6 {[%clk 0:02:35]} 5. f3 {[%clk 0:02:35]}  Bh5 {[%clk 0:02:35]} 6. Nf4 {[%clk 0:02:35]}  Bg6 {[%clk 0:02:32]} 7. Nxg6 {[%clk 0:02:35]}  hxg6 {[%clk 0:02:33]} 8. Nd2 {[%clk 0:02:35]}  c5 {[%clk 0:02:28]} 9. c3 {[%clk 0:02:36]}  Nc6 {[%clk 0:02:28]} 10. f4 {[%clk 0:02:36]}  Qc7 {[%clk 0:02:23]} 11. Nf3 {[%clk 0:02:36]}  Bd6 {[%clk 0:02:15]} 12. O-O {[%clk 0:02:35]}  cxd4 {[%clk 0:01:54]} 13. cxd4 {[%clk 0:02:35]}  O-O-O {[%clk 0:01:44]} 14. Bd2 {[%clk 0:02:31]}  Kb8 {[%clk 0:01:44]} 15. Rc1 {[%clk 0:02:29]}  Rh5 {[%clk 0:01:40]} 16. b4 {[%clk 0:02:29]}  Qb6 {[%clk 0:01:24]} 17. b5 {[%clk 0:02:27]}  Ne7 {[%clk 0:01:20]} 18. Qa4 {[%clk 0:02:26]}  Bc7 {[%clk 0:01:11]} 19. Ne5 {[%clk 0:02:21]}  Rdh8 {[%clk 0:00:38]} 20. h3 {[%clk 0:02:20]}  g5 {[%clk 0:00:26]} 21. fxg5 {[%clk 0:01:55]}  Bxe5 {[%clk 0:00:24]} 22. gxf6 {[%clk 0:01:43]}  Bxf6 {[%clk 0:00:23]} 23. Ba5 {[%clk 0:01:43]}  Qd6 {[%clk 0:00:18]} 24. Bc7+ {[%clk 0:01:43]}  Qxc7 {[%clk 0:00:19]} 25. Rxc7 {[%clk 0:01:44]}  Kxc7 {[%clk 0:00:20]} 26. Qxa7 {[%clk 0:01:44]}  Nc8 {[%clk 0:00:09]} 27. Rc1+ {[%clk 0:01:43]}  Kd8 {[%clk 0:00:08]} 28. Qxb7 {[%clk 0:01:44]}  Nd6 {[%clk 0:00:07]} 29. Qc7+ {[%clk 0:01:43]} 1-0


[Site "https://www.chess.com"]

[Event "Titled Tuesday Blitz May 31 Late 2022"]
[White "Papp, Petra"]
[Black "Hasangatin, Ramil"]
[WhiteFideId "739049"]
[BlackFideId "4122160"]
[WhiteElo "2259"]
[BlackElo "2399"]
[Result "0-1"]
[Round "03"]
[TimeControl "180+1"]
[Date "2022.06.01"]
[WhiteClock "0:00:09"]
[BlackClock "0:00:39"]

1. e4 {[%clk 0:03:00]}  d5 {[%clk 0:02:59]} 2. exd5 {[%clk 0:02:59]}  Qxd5 {[%clk 0:03:00]} 3. Nc3 {[%clk 0:02:59]}  Qd6 {[%clk 0:03:00]} 4. d4 {[%clk 0:02:59]}  Nf6 {[%clk 0:03:00]} 5. Nf3 {[%clk 0:02:59]}  c6 {[%clk 0:03:01]} 6. h3 {[%clk 0:02:58]}  g6 {[%clk 0:03:00]} 7. Ne5 {[%clk 0:02:55]}  Bg7 {[%clk 0:03:00]} 8. Nc4 {[%clk 0:02:55]}  Qd8 {[%clk 0:03:00]} 9. Bg5 {[%clk 0:02:51]}  O-O {[%clk 0:03:00]} 10. Qd2 {[%clk 0:02:50]}  Be6 {[%clk 0:02:56]} 11. Ne5 {[%clk 0:02:49]}  Nbd7 {[%clk 0:02:55]} 12. O-O-O {[%clk 0:02:18]}  Nxe5 {[%clk 0:02:54]} 13. dxe5 {[%clk 0:02:18]}  Nd5 {[%clk 0:02:54]} 14. f4 {[%clk 0:02:15]}  f6 {[%clk 0:02:41]} 15. exf6 {[%clk 0:02:13]}  exf6 {[%clk 0:02:42]} 16. Bh4 {[%clk 0:02:12]}  Qa5 {[%clk 0:02:37]} 17. Kb1 {[%clk 0:02:11]}  Nxc3+ {[%clk 0:02:36]} 18. Qxc3 {[%clk 0:02:09]}  Qxa2+ {[%clk 0:02:36]} 19. Kc1 {[%clk 0:02:09]}  f5 {[%clk 0:02:13]} 20. Qa3 {[%clk 0:02:00]}  Qxa3 {[%clk 0:02:13]} 21. bxa3 {[%clk 0:01:59]}  Bd5 {[%clk 0:02:10]} 22. Rg1 {[%clk 0:01:33]}  Bh6 {[%clk 0:02:06]} 23. g3 {[%clk 0:01:23]}  Rfe8 {[%clk 0:02:06]} 24. Bg2 {[%clk 0:01:22]}  Be6 {[%clk 0:01:55]} 25. Rge1 {[%clk 0:01:09]}  Bf8 {[%clk 0:01:55]} 26. Kb2 {[%clk 0:01:08]}  Kf7 {[%clk 0:01:55]} 27. Bf3 {[%clk 0:01:05]}  Be7 {[%clk 0:01:50]} 28. Bxe7 {[%clk 0:01:05]}  Rxe7 {[%clk 0:01:50]} 29. g4 {[%clk 0:01:05]}  Rae8 {[%clk 0:01:50]} 30. g5 {[%clk 0:01:00]}  Rd7 {[%clk 0:01:44]} 31. h4 {[%clk 0:00:51]}  Rxd1 {[%clk 0:01:40]} 32. Rxd1 {[%clk 0:00:51]}  Ke7 {[%clk 0:01:40]} 33. h5 {[%clk 0:00:50]}  Rd8 {[%clk 0:01:38]} 34. Rxd8 {[%clk 0:00:40]}  Kxd8 {[%clk 0:01:39]} 35. Kc3 {[%clk 0:00:41]}  Ke7 {[%clk 0:01:37]} 36. Kd3 {[%clk 0:00:39]}  Kd6 {[%clk 0:01:36]} 37. h6 {[%clk 0:00:37]}  Bd5 {[%clk 0:01:33]} 38. Be2 {[%clk 0:00:36]}  Be4+ {[%clk 0:01:31]} 39. Ke3 {[%clk 0:00:32]}  Bxc2 {[%clk 0:01:18]} 40. Bc4 {[%clk 0:00:26]}  Ke7 {[%clk 0:00:59]} 41. Kd4 {[%clk 0:00:25]}  Be4 {[%clk 0:00:55]} 42. Ke5 {[%clk 0:00:25]}  Bd5 {[%clk 0:00:48]} 43. Bxd5 {[%clk 0:00:12]}  cxd5 {[%clk 0:00:48]} 44. Kxd5 {[%clk 0:00:12]}  Kd7 {[%clk 0:00:47]} 45. Ke5 {[%clk 0:00:12]}  b5 {[%clk 0:00:47]} 46. Kf6 {[%clk 0:00:12]}  a5 {[%clk 0:00:44]} 47. Kg7 {[%clk 0:00:11]}  Ke7 {[%clk 0:00:37]} 48. Kxh7 {[%clk 0:00:09]}  Kf7 {[%clk 0:00:37]} 49. Kh8 {[%clk 0:00:09]}  a4 {[%clk 0:00:36]} 50. h7 {[%clk 0:00:09]}  b4 {[%clk 0:00:36]} 51. axb4 {[%clk 0:00:08]}  a3 {[%clk 0:00:37]} 52. b5 {[%clk 0:00:09]}  a2 {[%clk 0:00:38]} 53. b6 {[%clk 0:00:09]}  a1=Q# {[%clk 0:00:39]} 0-1


[Site "https://www.chess.com"]

[Event "Titled Tuesday Blitz May 31 Late 2022"]
[White "Piesik, Piotr"]
[Black "Mikhalsky, Vladimir"]
[WhiteFideId "1136194"]
[BlackFideId "14144352"]
[WhiteElo "2190"]
[BlackElo "2301"]
[Result "1-0"]
[Round "03"]
[TimeControl "180+1"]
[Date "2022.06.01"]
[WhiteClock "0:00:55"]
[BlackClock "0:00:06"]

1. Nf3 {[%clk 0:02:38]}  c5 {[%clk 0:02:58]} 2. g3 {[%clk 0:02:38]}  d5 {[%clk 0:02:57]} 3. Bg2 {[%clk 0:02:39]}  f6 {[%clk 0:02:57]} 4. O-O {[%clk 0:02:40]}  e5 {[%clk 0:02:57]} 5. d3 {[%clk 0:02:41]}  Nc6 {[%clk 0:02:56]} 6. Nbd2 {[%clk 0:02:42]}  Be6 {[%clk 0:02:55]} 7. e4 {[%clk 0:02:42]}  d4 {[%clk 0:02:55]} 8. Nh4 {[%clk 0:02:42]}  Qd7 {[%clk 0:02:53]} 9. f4 {[%clk 0:02:42]}  O-O-O {[%clk 0:02:52]} 10. Nf5 {[%clk 0:02:41]}  g6 {[%clk 0:02:51]} 11. Nh4 {[%clk 0:02:40]}  Bg4 {[%clk 0:02:37]} 12. Bf3 {[%clk 0:02:38]}  Bh3 {[%clk 0:02:36]} 13. Ng2 {[%clk 0:02:37]}  Bh6 {[%clk 0:02:33]} 14. Nc4 {[%clk 0:02:33]}  Re8 {[%clk 0:02:20]} 15. fxe5 {[%clk 0:02:32]}  fxe5 {[%clk 0:02:20]} 16. Rf2 {[%clk 0:02:13]}  Bxc1 {[%clk 0:02:16]} 17. Qxc1 {[%clk 0:02:14]}  Nf6 {[%clk 0:02:10]} 18. Qg5 {[%clk 0:02:14]}  Rhf8 {[%clk 0:02:01]} 19. Raf1 {[%clk 0:02:13]}  Ng8 {[%clk 0:01:42]} 20. Bg4 {[%clk 0:02:06]}  Bxg4 {[%clk 0:01:16]} 21. Rxf8 {[%clk 0:02:04]}  Rd8 {[%clk 0:00:53]} 22. Nxe5 {[%clk 0:02:00]}  Nxe5 {[%clk 0:00:53]} 23. Qxe5 {[%clk 0:02:01]}  b6 {[%clk 0:00:46]} 24. Rxd8+ {[%clk 0:01:58]}  Qxd8 {[%clk 0:00:45]} 25. Nf4 {[%clk 0:01:58]}  Ne7 {[%clk 0:00:38]} 26. Ne6 {[%clk 0:01:55]}  Nc6 {[%clk 0:00:23]} 27. Nxd8 {[%clk 0:01:38]}  Nxe5 {[%clk 0:00:23]} 28. Nf7 {[%clk 0:01:38]}  Nf3+ {[%clk 0:00:22]} 29. Kg2 {[%clk 0:01:38]}  Nd2 {[%clk 0:00:19]} 30. Rf2 {[%clk 0:01:38]}  Nb1 {[%clk 0:00:19]} 31. Ne5 {[%clk 0:01:35]}  Be6 {[%clk 0:00:18]} 32. Nf3 {[%clk 0:01:34]}  Bxa2 {[%clk 0:00:17]} 33. Rf1 {[%clk 0:01:33]}  a5 {[%clk 0:00:18]} 34. b3 {[%clk 0:01:26]}  b5 {[%clk 0:00:17]} 35. Ne5 {[%clk 0:01:20]}  a4 {[%clk 0:00:17]} 36. bxa4 {[%clk 0:01:20]}  bxa4 {[%clk 0:00:17]} 37. Nc4 {[%clk 0:01:10]}  Bxc4 {[%clk 0:00:17]} 38. Rxb1 {[%clk 0:01:10]}  Be6 {[%clk 0:00:13]} 39. Rb5 {[%clk 0:01:09]}  a3 {[%clk 0:00:13]} 40. Rxc5+ {[%clk 0:01:08]}  Kb7 {[%clk 0:00:13]} 41. Ra5 {[%clk 0:01:08]}  a2 {[%clk 0:00:13]} 42. Kf3 {[%clk 0:01:06]}  Kb6 {[%clk 0:00:14]} 43. Ra3 {[%clk 0:01:06]}  Kb5 {[%clk 0:00:13]} 44. Kf4 {[%clk 0:01:05]}  Kb4 {[%clk 0:00:14]} 45. Ra7 {[%clk 0:01:05]}  Kc3 {[%clk 0:00:13]} 46. Ke5 {[%clk 0:01:05]}  Bg8 {[%clk 0:00:12]} 47. Kf6 {[%clk 0:00:56]}  Kxc2 {[%clk 0:00:12]} 48. e5 {[%clk 0:00:56]}  Kb2 {[%clk 0:00:06]} 49. e6 {[%clk 0:00:52]}  Bxe6 {[%clk 0:00:05]} 50. Kxe6 {[%clk 0:00:53]}  a1=Q {[%clk 0:00:05]} 51. Rxa1 {[%clk 0:00:54]}  Kxa1 {[%clk 0:00:05]} 52. Kd5 {[%clk 0:00:54]}  Kb2 {[%clk 0:00:06]} 53. Kxd4 {[%clk 0:00:55]} 1-0


[Site "https://www.chess.com"]